bitfinex/quotes_BTCUSD_20260117
["timestamp","ask_amount","ask_price","bid_price","bid_amount"]
[1768667629794,0.01048778,95349.0,95346.0,0.01048811]
[1768667629999,0.01048789,95348.0,95345.0,0.01048822]
[1768667630419,0.01048778,95349.0,95346.0,0.01048811]
[1768667631491,0.01048756,95351.0,95347.0,0.0629279]
[1768667631727,0.01048756,95351.0,95348.0,0.01048789]
[1768667633791,0.01048767,95350.0,95347.0,0.010488]
[1768667633998,0.06292716,95349.0,95344.0,0.01048833]
[1768667634793,0.06292716,95349.0,95339.0,0.01048888]
[1768667634794,0.01048833,95344.0,95339.0,0.01048888]
[1768667635052,0.01048833,95344.0,95337.0,0.0104891]
[1768667635053,0.67852016,95342.0,95337.0,0.0104891]
[1768667635187,0.67852016,95342.0,95324.0,0.05641623]
[1768667635188,0.01048899,95338.0,95324.0,0.05641623]
[1768667635386,0.01048899,95338.0,95322.0,0.65735373]
[1768667635387,0.01048888,95339.0,95335.0,0.06293583]
[1768667635797,0.01048888,95339.0,95336.0,0.01048921]
[1768667636001,0.01048877,95340.0,95337.0,0.0104891]
[1768667636385,0.67852016,95342.0,95338.0,0.01048899]
[1768667636830,0.73096475,95340.0,95336.0,0.01048921]
[1768667637277,0.67852038,95340.0,95336.0,0.01048921]
[1768667637521,0.67852038,95340.0,95337.0,0.0104891]
[1768667638442,0.01048877,95340.0,95337.0,0.0104891]
[1768667638690,0.06293345,95339.0,95335.0,0.01048932]
[1768667639343,0.06293345,95339.0,95333.0,0.01048954]
[1768667639344,0.0104891,95337.0,95333.0,0.01048954]
[1768667639564,0.0104891,95337.0,95334.0,0.01048943]
[1768667640447,0.0104891,95337.0,95332.0,0.01048965]
[1768667640661,0.01048921,95336.0,95333.0,0.01048954]
[1768667640881,0.67816026,95335.0,95331.0,0.0001604]
[1768667641538,0.01048943,95334.0,95331.0,0.01065016]
[1768667641754,0.67816026,95335.0,95332.0,0.01048965]
[1768667641755,0.01048932,95335.0,95332.0,0.01048965]
[1768667641971,0.01048877,95340.0,95334.0,0.01048943]
[1768667642200,0.67852027,95341.0,95337.0,0.0103986]
[1768667643743,0.01048866,95341.0,95337.0,0.0103986]
[1768667643955,0.67851994,95344.0,95337.0,0.0104891]
[1768667644167,0.720475,95341.0,95337.0,0.0104891]
[1768667644393,0.01048833,95344.0,95338.0,0.01048899]
[1768667644633,0.01048833,95344.0,95339.0,0.05244397]
[1768667645263,0.01048833,95344.0,95338.0,0.01048899]
[1768667645264,0.01048844,95343.0,95340.0,0.01048877]
[1768667647624,0.01048833,95344.0,95340.0,0.01048877]
[1768667647839,0.01434828,95346.0,95341.0,0.01048866]
[1768667648071,0.01434828,95346.0,95343.0,0.06293059]
[1768667648342,0.01434828,95346.0,95345.0,0.05244113]
[1768667648539,0.01434828,95346.0,95344.0,0.05244157]
[1768667648742,0.01048789,95348.0,95344.0,0.0629299]
[1768667648948,0.01048789,95348.0,95345.0,0.01048822]
[1768667649158,0.01048778,95349.0,95344.0,0.01048833]
[1768667649689,0.01048811,95346.0,95342.0,0.01048855]
[1768667649935,0.01048822,95345.0,95342.0,0.01048855]
[1768667650305,0.01048811,95346.0,95343.0,0.01048844]
[1768667650671,0.01048822,95345.0,95341.0,0.01048866]
[1768667650881,0.01048833,95344.0,95341.0,0.01048866]
[1768667651041,0.06293008,95344.0,95339.0,0.06293286]
[1768667651238,0.01048844,95343.0,95339.0,0.01048888]
[1768667651440,0.01048844,95343.0,95340.0,0.01048877]
[1768667652438,0.01048822,95345.0,95341.0,0.06293193]
[1768667653250,0.01048811,95346.0,95342.0,0.06293129]
[1768667653449,0.01048811,95346.0,95341.0,0.01048866]
[1768667653450,0.01048833,95344.0,95341.0,0.01048866]
[1768667653632,0.06293067,95343.0,95338.0,0.01048899]
[1768667653772,0.06293067,95343.0,95338.0,0.06293383]
[1768667653989,0.01048855,95342.0,95339.0,0.06293326]
[1768667654250,0.66803161,95343.0,95333.0,0.01048954]
[1768667654486,0.463201,95350.0,95333.0,0.01048954]
[1768667654487,0.66803161,95340.0,95336.0,0.01048921]
[1768667654766,0.01048866,95341.0,95336.0,0.06293519]
[1768667654904,0.67852027,95341.0,95336.0,0.01048921]
[1768667655110,0.01048888,95339.0,95335.0,0.01048932]
[1768667655317,0.67852027,95341.0,95335.0,0.01048932]
[1768667655318,0.01048877,95340.0,95336.0,0.01048921]
[1768667655518,0.01048888,95339.0,95336.0,0.01048921]
[1768667655718,0.06293349,95339.0,95335.0,0.01048932]
[1768667656335,0.01048877,95340.0,95336.0,0.01048921]
[1768667656527,0.06293336,95339.0,95335.0,0.01048932]
[1768667657368,0.01048877,95340.0,95336.0,0.01048921]
[1768667657767,0.06293331,95339.0,95334.0,0.01048943]
[1768667657998,0.01048888,95339.0,95335.0,0.01048932]
[1768667659109,0.01048888,95339.0,95336.0,0.01048921]
[1768667660103,0.01048888,95339.0,95335.0,0.01048932]
[1768667660104,0.06293355,95339.0,95335.0,0.01048932]
[1768667661067,0.01048888,95339.0,95336.0,0.01048921]
[1768667661710,0.01048943,95334.0,95323.0,0.03765356]
[1768667661918,0.01048899,95338.0,95330.0,0.01048987]
[1768667662120,0.05244554,95337.0,95330.0,0.01048987]
[1768667662651,0.0104891,95337.0,95326.0,0.33688559]
[1768667662858,0.0104891,95337.0,95331.0,0.05244845]
[1768667663064,0.01048932,95335.0,95326.0,0.12708]
[1768667663513,0.01048932,95335.0,95327.0,0.12708]
[1768667663514,0.01048943,95334.0,95327.0,0.12708]
[1768667663724,0.01048943,95334.0,95329.0,0.0524499]
[1768667663862,0.06293662,95334.0,95328.0,0.0524504]
[1768667664251,0.01048965,95332.0,95329.0,0.01048998]
[1768667664452,0.01048987,95330.0,95325.0,0.01049042]
[1768667664721,0.65235714,95329.0,95326.0,0.01049031]
[1768667664936,0.01048987,95330.0,95326.0,0.01049031]
[1768667665136,0.01048998,95329.0,95326.0,0.01049031]
[1768667665687,0.01049009,95328.0,95325.0,0.01049042]
[1768667668110,0.01048998,95329.0,95325.0,0.01049042]
[1768667669263,0.01048998,95329.0,95326.0,0.01049031]
[1768667670485,0.01048965,95332.0,95327.0,0.06294121]
[1768667670693,0.0524478,95333.0,95327.0,0.06294121]
[1768667670694,0.01048943,95334.0,95329.0,0.01048998]
[1768667670906,0.01048943,95334.0,95316.0,0.80807802]
[1768667670907,0.25344641,95350.0,95294.0,0.01593565]
[1768667670908,0.01049306,95301.0,95294.0,0.01593565]
[1768667671105,0.64540769,95297.0,95292.0,0.01065446]
[1768667671326,0.05246975,95293.0,95292.0,1e-08]
[1768667671516,0.05246975,95293.0,95280.0,0.01069538]
[1768667671517,0.01044947,95286.0,95283.0,0.0002]
[1768667671667,0.01049439,95289.0,95283.0,0.0003192]
[1768667671883,0.01049472,95286.0,95283.0,0.0003192]
[1768667672111,0.01049472,95286.0,95283.0,0.00046105]
[1768667672456,0.70712236,95290.0,95284.0,0.01049494]
[1768667672457,0.65465075,95287.0,95284.0,0.01049494]
[1768667672649,0.01049439,95289.0,95285.0,0.01049483]
[1768667672853,0.01049439,95289.0,95285.0,0.0001192]
[1768667672854,0.66514525,95288.0,95285.0,0.0001192]
[1768667673474,0.01049516,95282.0,95276.0,0.0002]
[1768667673715,0.66226789,95278.0,95275.0,0.00014182]
[1768667673931,0.01049604,95274.0,95259.0,0.3370733]
[1768667674163,0.66226789,95273.0,95269.0,0.01049659]
[1768667674367,0.66226789,95273.0,95271.0,0.01049637]
[1768667674589,0.00605784,95272.0,95271.0,0.01049637]
[1768667674819,0.13761527,95281.0,95274.0,0.01049604]
[1768667675068,0.66226789,95277.0,95274.0,0.01049604]
[1768667675272,0.66226789,95277.0,95272.0,0.05248131]
[1768667675273,0.6727636,95277.0,95272.0,0.01049626]
[1768667675474,0.6727636,95277.0,95273.0,0.01049615]
[1768667675599,0.66226789,95277.0,95273.0,0.01049615]
[1768667675801,0.6727636,95277.0,95272.0,0.01049626]
[1768667676044,0.67276371,95276.0,95272.0,0.01049626]
[1768667676245,0.67276371,95276.0,95273.0,0.01049615]
[1768667676473,0.67276371,95276.0,95272.0,0.01049626]
[1768667676671,0.66226789,95276.0,95273.0,0.01049615]
[1768667677262,0.66226789,95276.0,95273.0,0.0629768]
[1768667677629,0.66226789,95276.0,95273.0,0.01049615]
[1768667678041,0.05247724,95280.0,95273.0,0.01049615]
[1768667678042,0.67276338,95279.0,95276.0,0.01049582]
[1768667678260,0.66226789,95279.0,95276.0,0.01049582]
[1768667678473,0.01049472,95286.0,95276.0,0.01049582]
[1768667678474,0.12712,95288.0,95279.0,0.01049549]
[1768667678684,0.01049461,95287.0,95283.0,0.01049505]
[1768667678895,0.01049461,95287.0,95286.0,0.01049472]
[1768667678896,0.00014164,95287.0,95286.0,0.01049472]
[1768667679321,0.00014164,95287.0,95285.0,0.01049483]
[1768667679531,0.00014164,95287.0,95284.0,0.01049494]
[1768667679745,0.01049472,95286.0,95283.0,0.01049505]
[1768667679961,0.01049483,95285.0,95280.0,0.01049538]
[1768667680175,0.00014164,95287.0,95284.0,0.01049494]
[1768667681273,0.0524681,95296.0,95291.0,0.01049417]
[1768667681739,0.01049384,95294.0,95291.0,0.01049417]
[1768667682599,0.01049417,95291.0,95288.0,0.0104945]
[1768667682822,0.01049417,95291.0,95280.0,0.01049538]
[1768667683045,0.01049483,95285.0,95281.0,0.01049527]
[1768667683490,0.05247237,95289.0,95282.0,0.01049516]
[1768667683953,0.01049472,95286.0,95283.0,0.01049505]
[1768667684376,0.01049461,95287.0,95283.0,0.01049505]
[1768667685044,0.66226789,95292.0,95286.0,0.05247309]
[1768667685281,0.01049417,95291.0,95286.0,0.01049472]
[1768667685501,0.72523293,95291.0,95286.0,0.01049472]
[1768667686162,0.01049439,95289.0,95286.0,0.01049472]
[1768667686384,0.67276206,95291.0,95287.0,0.01049461]
[1768667686617,0.67276206,95291.0,95288.0,0.0104945]
[1768667686829,0.67276184,95293.0,95289.0,0.06296629]
[1768667687252,0.67276184,95293.0,95290.0,0.01049428]
[1768667687735,0.72523227,95292.0,95288.0,0.0104945]
[1768667687963,0.72523227,95292.0,95287.0,0.13765461]
[1768667687964,0.06296504,95291.0,95287.0,0.13765461]
[1768667688186,0.66226789,95308.0,95293.0,0.01049395]
[1768667688400,0.01049361,95296.0,95292.0,0.01049406]
[1768667688830,0.01049417,95291.0,95288.0,0.0104945]
[1768667689045,0.01049395,95293.0,95289.0,0.01049439]
[1768667689263,0.01049372,95295.0,95292.0,0.01049406]
[1768667689500,0.05246815,95296.0,95292.0,0.01049406]
[1768667690378,0.01049372,95295.0,95292.0,0.01049406]
[1768667690595,0.01049372,95295.0,95287.0,0.13765461]
[1768667690596,0.01049593,95275.0,95269.0,0.01049659]
[1768667690815,0.01049593,95275.0,95272.0,0.12716]
[1768667690816,0.66672211,95275.0,95272.0,0.12716]
[1768667691032,0.65622618,95275.0,95271.0,0.05248134]
[1768667691283,0.65622618,95275.0,95272.0,0.01049626]
[1768667691537,0.6727636,95277.0,95273.0,0.01049615]
[1768667691752,0.66226789,95277.0,95274.0,0.01049604]
[1768667692378,0.6727636,95277.0,95272.0,0.01049626]
[1768667692621,0.01049582,95276.0,95271.0,0.06297815]
[1768667692834,0.6727636,95277.0,95273.0,0.01049615]
[1768667693049,0.01049582,95276.0,95273.0,0.01049615]
[1768667693904,0.6727636,95277.0,95274.0,0.01049604]
[1768667695397,0.66226789,95277.0,95274.0,0.01049604]
[1768667696044,0.01049538,95280.0,95276.0,0.01049582]
[1768667696905,0.01049549,95279.0,95275.0,0.01049593]
[1768667697119,0.06297177,95281.0,95275.0,0.01049593]
[1768667697120,0.01049527,95281.0,95276.0,0.01049582]
[1768667697336,0.01049527,95281.0,95276.0,0.06297439]
[1768667697759,0.30732874,95281.0,95276.0,0.06297439]
[1768667698404,0.30732874,95281.0,95277.0,0.01049571]
[1768667699524,0.30732874,95281.0,95278.0,0.0104956]
[1768667701285,0.01049527,95281.0,95278.0,0.0104956]
[1768667702791,0.30732874,95281.0,95278.0,0.0104956]
[1768667703050,0.30732874,95281.0,95274.0,0.01049604]
[1768667703051,0.01049593,95275.0,95271.0,0.01049637]
[1768667703253,0.01049593,95275.0,95268.0,0.0104967]
[1768667703458,0.05248021,95274.0,95268.0,0.06298006]
[1768667703592,0.01049593,95275.0,95268.0,0.0104967]
[1768667703931,0.01049593,95275.0,95269.0,0.01049659]
[1768667704274,0.01888,95273.0,95270.0,0.06297881]
[1768667705239,0.01888,95273.0,95270.0,0.01049648]
[1768667706009,0.01888,95273.0,95271.0,0.05248181]
[1768667706912,0.01888,95273.0,95270.0,0.01049648]
[1768667707049,0.01883474,95273.0,95271.0,0.05248186]
[1768667708317,0.01883474,95273.0,95270.0,0.01049648]
[1768667708318,0.01883474,95273.0,95272.0,0.05248131]
[1768667708486,0.01053305,95273.0,95272.0,0.05248131]
[1768667709283,0.01048779,95273.0,95270.0,0.06297843]
[1768667709484,0.01048779,95273.0,95270.0,0.01049648]
[1768667709689,0.01048779,95273.0,95270.0,0.0629784]
[1768667709893,0.01048779,95273.0,95270.0,0.01049648]
[1768667710265,0.01049538,95280.0,95274.0,0.05248012]
[1768667710470,0.01049538,95280.0,95273.0,0.06297688]
[1768667710471,0.05247789,95279.0,95273.0,0.06297688]
[1768667710647,0.01049538,95280.0,95268.0,0.0104967]
[1768667710648,0.01049505,95283.0,95279.0,0.01049549]
[1768667710906,0.35980444,95282.0,95279.0,0.01049549]
[1768667711109,0.35980444,95282.0,95278.0,0.0104956]
[1768667711607,0.30732874,95281.0,95277.0,0.01049571]
[1768667711929,0.01049538,95280.0,95277.0,0.01049571]
[1768667712185,0.01049538,95280.0,95275.0,0.0629755]
[1768667712186,0.0629726,95280.0,95275.0,0.01049593]
[1768667712378,0.01049538,95280.0,95276.0,0.01049582]
[1768667713804,0.01049538,95280.0,95276.0,0.0629749]
[1768667714436,0.06297171,95281.0,95277.0,0.01049571]
[1768667714778,0.29683347,95286.0,95270.0,0.20992905]
[1768667714779,0.0002092,95305.0,95287.0,0.74845787]
[1768667714967,0.01049439,95289.0,95285.0,0.01049483]
[1768667715173,0.01049439,95289.0,95283.0,0.80093307]
[1768667715174,0.0104945,95288.0,95283.0,0.80093307]
[1768667715313,0.06296812,95287.0,95283.0,0.01049505]
[1768667715516,0.01049472,95286.0,95282.0,0.1272]
[1768667715737,0.062969,95285.0,95282.0,0.1272]
[1768667715934,0.062969,95285.0,95276.0,0.74845908]
[1768667715935,0.01049527,95281.0,95276.0,0.74845908]
[1768667716139,0.01049549,95279.0,95276.0,0.73796326]
[1768667716336,0.01049549,95279.0,95260.0,0.25387071]
[1768667716337,0.01049549,95279.0,95249.0,0.0002092]
[1768667716541,1.04906792,95323.0,95249.0,0.0002092]
[1768667716542,0.06298197,95266.0,95263.0,1e-08]
[1768667716746,0.05248537,95265.0,95264.0,0.1272]
[1768667717056,0.01049692,95266.0,95263.0,1e-08]
[1768667717057,0.05248572,95264.0,95263.0,1e-08]
[1768667717227,0.01049692,95266.0,95263.0,1e-08]
[1768667717422,0.01049692,95266.0,95256.0,0.01049802]
[1768667717423,0.01049703,95265.0,95257.0,0.05245791]
[1768667717669,0.05248627,95263.0,95262.0,0.1274092]
[1768667718194,0.05248627,95263.0,95262.0,0.1174092]
[1768667718399,0.05248627,95263.0,95262.0,0.09030816]
[1768667718800,0.05248627,95263.0,95262.0,0.08030816]
[1768667718978,0.05248572,95264.0,95262.0,0.08030816]
[1768667719182,0.05248627,95263.0,95262.0,0.08030816]
[1768667719504,0.0629822,95265.0,95262.0,0.08030816]
[1768667719706,0.05248627,95263.0,95262.0,0.08030816]
[1768667721085,0.05248627,95263.0,95257.0,0.04196]
[1768667721086,0.01049758,95260.0,95257.0,0.04196]
[1768667721407,0.06298559,95260.0,95258.0,0.1272]
[1768667722015,0.01149725,95263.0,95258.0,0.88866948]
[1768667722222,0.01149725,95263.0,95258.0,0.1272]
[1768667723133,0.01049648,95262.0,95258.0,0.1272]
[1768667723345,0.01049648,95262.0,95259.0,0.01049769]
[1768667723889,0.0104967,95268.0,95263.0,0.01049725]
[1768667724111,0.01049692,95266.0,95264.0,0.1272]
[1768667724922,0.00838352,95265.0,95264.0,0.1272]
[1768667727067,0.06297609,95275.0,95268.0,0.0104967]
[1768667727274,0.01049615,95273.0,95269.0,0.01049659]
[1768667727472,0.01049615,95273.0,95268.0,0.06298021]
[1768667727473,0.01049615,95273.0,95268.0,0.06297997]
[1768667727907,0.00010915,95275.0,95270.0,0.77196596]
[1768667728108,0.00010915,95275.0,95272.0,0.01049626]
[1768667728313,0.00010915,95275.0,95272.0,0.0629774]
[1768667728518,0.00010915,95275.0,95273.0,0.05248071]
[1768667729162,0.00010915,95275.0,95272.0,0.01049626]
[1768667729551,0.00010915,95275.0,95272.0,0.06297756]
[1768667729923,0.00010915,95275.0,95272.0,0.01049626]
[1768667730121,0.00010915,95275.0,95272.0,0.06297711]
[1768667730381,0.00010915,95275.0,95272.0,0.06297743]
[1768667731183,0.00010915,95275.0,95272.0,0.82444691]
[1768667731314,0.00010915,95275.0,95273.0,0.81394971]
[1768667731737,0.00010915,95275.0,95274.0,0.05248021]
[1768667731956,0.00010915,95275.0,95273.0,0.76146948]
[1768667732163,0.00010915,95275.0,95273.0,0.05248047]
[1768667732356,1e-08,95275.0,95274.0,0.05248021]
[1768667733162,0.01049538,95280.0,95275.0,0.01049593]
[1768667733836,0.05247641,95281.0,95275.0,0.01049593]
[1768667734036,0.01049549,95279.0,95276.0,0.01049582]
[1768667734155,0.01049538,95280.0,95276.0,0.01049582]
[1768667735741,0.01049703,95265.0,95260.0,0.01049758]
[1768667735897,0.01049703,95265.0,95260.0,0.06309458]
[1768667736112,0.01049714,95264.0,95261.0,0.1272]
[1768667736305,0.01049703,95265.0,95261.0,0.13769747]
[1768667736887,0.01049692,95266.0,95262.0,0.01049736]
[1768667737091,0.01049692,95266.0,95261.0,0.19018482]
[1768667737328,0.01049692,95266.0,95262.0,0.05248678]
[1768667737743,0.01049692,95266.0,95262.0,0.04248678]
[1768667738332,0.01049692,95266.0,95262.0,0.01049736]
[1768667738893,0.01049692,95266.0,95263.0,0.01049725]
[1768667741684,0.01049692,95266.0,95262.0,0.01049736]
[1768667742057,0.01049703,95265.0,95261.0,0.13769747]
[1768667743299,0.01049703,95265.0,95262.0,0.01049736]
[1768667743532,0.0104967,95268.0,95265.0,0.01049703]
[1768667744061,0.01049681,95267.0,95263.0,0.01049725]
[1768667744805,0.01049703,95265.0,95262.0,0.13769736]
[1768667745011,0.01049692,95266.0,95263.0,0.01049725]
[1768667746574,0.05248165,95272.0,95266.0,0.01049692]
[1768667746786,0.01049648,95270.0,95264.0,0.01049714]
[1768667747021,0.01049659,95269.0,95266.0,0.01049692]
[1768667748191,0.01049659,95269.0,95266.0,0.06298152]
[1768667749175,0.01049648,95270.0,95267.0,0.01049681]
[1768667749512,0.062977,95273.0,95268.0,0.0104967]
[1768667749709,0.01049615,95273.0,95269.0,0.01049659]
[1768667749912,0.01049604,95274.0,95269.0,0.01049659]
[1768667749913,0.01049604,95274.0,95270.0,0.01049648]
[1768667750116,0.01049604,95274.0,95271.0,0.01049637]
[1768667750888,0.00456629,95276.0,95271.0,0.01049637]
[1768667750889,0.74370423,95276.0,95271.0,0.06297822]
[1768667751099,0.01049593,95275.0,95271.0,0.06297819]
[1768667751319,0.01049593,95275.0,95272.0,0.01049626]
[1768667751733,0.06297595,95275.0,95271.0,0.01049637]
[1768667752136,0.01049593,95275.0,95271.0,0.01049637]
[1768667752632,0.06297603,95275.0,95271.0,0.01049637]
[1768667753682,0.01049615,95273.0,95270.0,0.01049648]
[1768667753889,0.01049615,95273.0,95269.0,0.13769659]
[1768667754839,0.06297703,95273.0,95269.0,0.13769659]
[1768667754956,0.01049615,95273.0,95270.0,0.01049648]
[1768667755898,0.06297712,95273.0,95270.0,0.01049648]
[1768667756231,0.06297699,95273.0,95269.0,0.13769659]
[1768667756433,0.0104956,95278.0,95272.0,0.01049626]
[1768667756566,0.0104956,95278.0,95273.0,0.05248032]
[1768667757100,0.0104956,95278.0,95272.0,0.01049626]
[1768667757101,0.0104956,95278.0,95274.0,0.05248011]
[1768667757314,0.0524776,95279.0,95275.0,0.01049593]
[1768667757750,0.0424776,95279.0,95275.0,0.01049593]
[1768667757960,0.06297391,95278.0,95274.0,0.01049604]
[1768667758240,0.06297427,95277.0,95273.0,0.01049615]
[1768667759107,0.01049571,95277.0,95273.0,0.01049615]
[1768667759302,0.01049571,95277.0,95273.0,0.06297682]
[1768667759717,0.06297472,95277.0,95273.0,0.01049615]
[1768667759957,0.01049571,95277.0,95273.0,0.01049615]
[1768667760184,0.06297434,95277.0,95273.0,0.01049615]
[1768667760403,0.01049582,95276.0,95273.0,0.01049615]
[1768667760622,0.01049582,95276.0,95273.0,0.01040564]
[1768667761062,0.01049582,95276.0,95273.0,0.06288636]
[1768667761274,0.01049582,95276.0,95273.0,0.01040564]
[1768667761707,0.01049571,95277.0,95273.0,0.01040564]
[1768667762336,0.01049582,95276.0,95273.0,0.01040564]
[1768667762562,0.01049582,95276.0,95272.0,0.01049626]
[1768667762782,0.01049582,95276.0,95273.0,0.01049615]
[1768667763759,0.01049593,95275.0,95272.0,0.01049626]
[1768667764401,0.01049582,95276.0,95272.0,0.06297739]
[1768667764922,0.01049593,95275.0,95271.0,0.01049637]
[1768667765127,0.01049604,95274.0,95271.0,0.01049637]
[1768667766006,0.06297626,95274.0,95270.0,0.01049648]
[1768667766631,0.06297708,95273.0,95269.0,0.1272]
[1768667767043,0.06297708,95273.0,95269.0,0.13769659]
[1768667767705,0.06297703,95273.0,95269.0,0.13769659]
[1768667768132,0.01049615,95273.0,95269.0,0.19017949]
[1768667768339,0.06297574,95275.0,95271.0,0.01049637]
[1768667769271,0.01049593,95275.0,95271.0,0.06297814]
[1768667769487,0.01049593,95275.0,95271.0,0.01049637]
[1768667769925,0.01049593,95275.0,95270.0,0.05248237]
[1768667770339,0.06297581,95275.0,95271.0,0.01049637]
[1768667770550,0.01049593,95275.0,95271.0,0.01049637]
[1768667770978,0.01049604,95274.0,95271.0,0.01049637]
[1768667771805,0.01049593,95275.0,95272.0,0.01049626]
[1768667772426,0.01049538,95280.0,95277.0,0.01049571]
[1768667773042,0.01049538,95280.0,95276.0,0.01049582]
[1768667773248,0.01049549,95279.0,95276.0,0.01049582]
[1768667773458,0.01049538,95280.0,95277.0,0.01049571]
[1768667774076,0.06297234,95280.0,95276.0,0.01049582]
[1768667774290,0.01049538,95280.0,95276.0,0.06297481]
[1768667774614,0.01049538,95280.0,95276.0,0.01049582]
[1768667774839,0.05247537,95283.0,95270.0,0.46377315]
[1768667774840,0.0104945,95288.0,95285.0,0.01049483]
[1768667775065,0.05657709,95310.0,95294.0,0.0524692]
[1768667775066,0.01049306,95301.0,95294.0,0.0524692]
[1768667775271,0.01049306,95301.0,95295.0,0.13048592]
[1768667775519,0.01049306,95301.0,95295.0,0.18295406]
[1768667775786,0.01049306,95301.0,95296.0,0.0226313]
[1768667775787,0.01049328,95299.0,95296.0,0.0226313]
[1768667775924,0.01049328,95299.0,95297.0,0.0226313]
[1768667777166,0.01049317,95300.0,95297.0,0.0226313]
[1768667777567,0.01049306,95301.0,95297.0,0.0226313]
[1768667777838,0.01049317,95300.0,95297.0,0.0226313]
[1768667778122,0.01049306,95301.0,95297.0,0.0226313]
[1768667778346,0.01049317,95300.0,95297.0,0.0226313]
[1768667778560,0.05277079,95298.0,95297.0,0.0226313]
[1768667778800,0.05246809,95296.0,95295.0,0.1199922]
[1768667779871,0.01049406,95292.0,95287.0,0.05247291]
[1768667780089,0.20985675,95304.0,95280.0,0.04196]
[1768667780090,0.69871254,95296.0,95280.0,0.02831876]
[1768667780304,0.69871254,95296.0,95281.0,0.1272]
[1768667780305,0.69871254,95291.0,95281.0,0.1272]
[1768667780519,0.74064112,95286.0,95281.0,0.1272]
[1768667780743,0.73416918,95285.0,95281.0,0.1272]
[1768667780974,0.67767255,95285.0,95281.0,0.1272]
[1768667781202,0.66162529,95285.0,95281.0,0.1901714]
[1768667781423,0.65663283,95285.0,95281.0,0.13769527]
[1768667782123,0.03153405,95284.0,95282.0,0.01049516]
[1768667782372,0.03145013,95284.0,95282.0,0.01049516]
[1768667782616,0.02220257,95284.0,95282.0,0.01049516]
[1768667782821,0.65663283,95285.0,95282.0,0.06297076]
[1768667783219,0.59996506,95285.0,95283.0,0.05247521]
[1768667783452,0.67043346,95287.0,95283.0,0.06297026]
[1768667784077,0.65993885,95287.0,95284.0,0.01049494]
[1768667784306,0.0629664,95289.0,95284.0,0.01049494]
[1768667784518,0.01049439,95289.0,95286.0,0.01049472]
[1768667786142,0.0003038,95288.0,95286.0,0.01049472]
[1768667787500,0.0003038,95288.0,95286.0,0.0629682]
[1768667788127,0.0003038,95288.0,95287.0,0.05247305]
[1768667788298,0.00014185,95296.0,95291.0,0.05247033]
[1768667788457,0.00014185,95296.0,95292.0,0.05247018]
[1768667788659,0.00014185,95296.0,95292.0,0.04911898]
[1768667788875,0.00014185,95296.0,95295.0,0.05246864]
[1768667789267,0.00014185,95296.0,95295.0,0.04197514]
[1768667789923,1e-08,95296.0,95295.0,0.04197514]
[1768667790685,1e-08,95296.0,95295.0,0.06457025]
[1768667791153,0.05261615,95304.0,95301.0,0.06295798]
[1768667791154,0.0001524,95304.0,95301.0,0.06295798]
[1768667791377,0.01049196,95311.0,95307.0,0.06282996]
[1768667791610,0.01049196,95311.0,95307.0,0.0104924]
[1768667791820,0.6704307,95312.0,95308.0,0.01049229]
[1768667792052,0.65993885,95312.0,95309.0,0.01049218]
[1768667792286,0.01065033,95314.0,95311.0,0.01049196]
[1768667792287,0.66009755,95314.0,95311.0,0.01049196]
[1768667792506,0.01049174,95313.0,95309.0,0.01049218]
[1768667792736,0.01049174,95313.0,95309.0,0.06295305]
[1768667793185,0.01049174,95313.0,95310.0,0.01049207]
[1768667793415,0.67058918,95314.0,95311.0,0.01049196]
[1768667793416,0.0001587,95314.0,95311.0,0.01049196]
[1768667793642,0.0001587,95314.0,95311.0,0.06295135]
[1768667794074,0.0001587,95314.0,95312.0,0.0524592]
[1768667794280,0.01049185,95312.0,95293.0,0.02831876]
[1768667794514,0.01049185,95312.0,95302.0,0.02258146]
[1768667794515,0.0104924,95307.0,95302.0,0.02258146]
[1768667794765,0.0104924,95307.0,95301.0,0.13765306]
[1768667794766,0.69050885,95305.0,95301.0,0.13765306]
[1768667795211,0.01049273,95304.0,95301.0,0.13765306]
[1768667795634,0.06295643,95304.0,95301.0,0.12716]
[1768667795849,0.06295643,95304.0,95187.0,0.48991538]
[1768667795850,0.01049339,95298.0,95295.0,0.13765372]
[1768667796065,0.01049339,95298.0,95295.0,0.13777772]
[1768667796468,0.01049328,95299.0,95295.0,0.13777772]
[1768667796670,0.01049328,95299.0,95295.0,0.1902463]
[1768667797018,0.01049328,95299.0,95295.0,0.13777772]
[1768667797423,0.06295973,95299.0,95295.0,0.13777772]
[1768667797729,0.0629606,95298.0,95295.0,0.127284]
[1768667797860,0.25384381,95310.0,95288.0,0.20988796]
[1768667797861,0.69055555,95292.0,95288.0,0.0629669]
[1768667798045,0.01049395,95293.0,95289.0,0.01049439]
[1768667798444,0.06296379,95293.0,95289.0,0.01049439]
[1768667798857,0.06296379,95293.0,95288.0,0.0104945]
[1768667798858,0.06296409,95293.0,95288.0,0.0104945]
[1768667799264,0.01049417,95291.0,95287.0,0.06296663]
[1768667799463,0.01049417,95291.0,95287.0,0.05247202]
[1768667800175,0.01049417,95291.0,95286.0,0.05247255]
[1768667800381,0.01049417,95291.0,95288.0,0.0104945]
[1768667801145,0.01049384,95294.0,95290.0,0.01049428]
[1768667801349,0.6905551,95296.0,95291.0,0.06296489]
[1768667802184,0.6905551,95296.0,95293.0,0.01049395]
[1768667802807,0.68006149,95296.0,95293.0,0.01049395]
[1768667803003,0.13765295,95302.0,95295.0,0.01049372]
[1768667803205,0.05246761,95297.0,95293.0,0.01049395]
[1768667803407,0.06296046,95298.0,95293.0,0.01049395]
[1768667803564,0.06296046,95298.0,95293.0,0.06296366]
[1768667804301,0.01049406,95292.0,95288.0,0.02831876]
[1768667804509,0.05247085,95291.0,95288.0,0.02831876]
[1768667804708,0.05247085,95291.0,95287.0,0.01049461]
[1768667804709,0.06296502,95291.0,95287.0,0.01049461]
[1768667804915,0.01049417,95291.0,95287.0,0.06296753]
[1768667805417,0.06296521,95291.0,95287.0,0.01049461]
[1768667805590,0.06296521,95291.0,95287.0,0.00370753]
[1768667805773,0.05247104,95291.0,95287.0,0.01049461]
[1768667805954,0.00911586,95292.0,95289.0,0.01049439]
[1768667806686,0.00911586,95292.0,95290.0,0.0226253]
[1768667807056,0.00911586,95292.0,95291.0,0.0226253]
[1768667810495,0.01049417,95291.0,95287.0,0.01049461]
[1768667810844,0.01049417,95291.0,95288.0,0.062967]
[1768667811046,0.00911586,95292.0,95288.0,0.062967]
[1768667811265,0.00911586,95292.0,95289.0,0.01049439]
[1768667811481,0.00911586,95292.0,95289.0,0.06296613]
[1768667813280,0.01049384,95294.0,95291.0,0.01049417]
[1768667816082,0.0629631,95294.0,95291.0,0.01049417]
[1768667817361,0.01049384,95294.0,95291.0,0.01049417]
[1768667817907,0.06296304,95294.0,95291.0,0.01049417]
[1768667818315,0.06296304,95294.0,95290.0,0.01049428]
[1768667818464,0.06296304,95294.0,95291.0,0.01049417]
[1768667818672,0.06296304,95294.0,95291.0,0.00724496]
[1768667818854,0.01049384,95294.0,95291.0,0.00724496]
[1768667819255,0.01049372,95295.0,95291.0,0.05971573]
[1768667819437,0.01049372,95295.0,95292.0,0.06296435]
[1768667820688,0.01049372,95295.0,95292.0,0.01049406]